lending/lending_fUSD_20240604
["ID","MTS","AMOUNT","RATE_DAILY","PERIOD"]
[328546851,1717518638677,-170.59798751,0.00029589,6]
[328546852,1717518638688,-500.0,0.00029589,6]
[328546853,1717518638698,-614.22897597,0.00029589,6]
[328546854,1717518638708,-500.0,0.00029589,6]
[328546855,1717518638718,-500.0,0.00029589,6]
[328546856,1717518638728,-500.0,0.00029589,6]
[328546857,1717518638738,-500.0,0.00029589,6]
[328546858,1717518638749,-500.0,0.00029589,6]
[328546859,1717518638758,-500.0,0.00029589,6]
[328546860,1717518638768,-405.37115907,0.00029589,2]
[328546861,1717518638778,-500.0,0.00029589,6]
[328546863,1717518638788,-253.97681888,0.00029589,6]
[328546865,1717518638798,-500.0,0.00029589,6]
[328546867,1717518638808,-500.0,0.00029589,6]
[328546869,1717518638818,-610.90163676,0.00029589,6]
[328546872,1717518638828,-500.0,0.00029589,6]
[328546874,1717518638838,-500.0,0.00029589,6]
[328546876,1717518638848,-500.0,0.00029589,6]
[328546878,1717518638858,-482.50679633,0.00029589,6]
[328546880,1717518638870,-320.02628292,0.00029589,6]
[328546881,1717518638879,-500.0,0.00029589,6]
[328546884,1717518638888,-514.49060108,0.00029589,6]
[328546885,1717518638898,-511.7041923,0.00029589,6]
[328546887,1717518638908,-500.0,0.00029589,6]
[328546889,1717518638918,-500.0,0.00029589,6]
[328546891,1717518638931,-500.0,0.00029589,6]
[328546893,1717518638941,-500.0,0.00029589,6]
[328546895,1717518638951,-232.02,0.00029589,6]
[328546897,1717518638961,-511.07507978,0.00029589,6]
[328546899,1717518638971,-508.26807084,0.00029589,6]
[328546901,1717518638981,-500.0,0.00029589,6]
[328546903,1717518638990,-500.0,0.00029589,6]
[328546905,1717518639002,-636.63,0.00029589,6]
[328546907,1717518639012,-500.0,0.00029589,6]
[328546909,1717518639021,-500.0,0.00029589,6]
[328546911,1717518639031,-181.72,0.00029589,6]
[328546913,1717518639041,-425.67856051,0.00029589,6]
[328546915,1717518639052,-249.6,0.00029589,6]
[328546917,1717518639062,-500.0,0.00029589,6]
[328546919,1717518639072,-500.0,0.00029589,6]
[328546921,1717518639082,-500.0,0.00029589,6]
[328546923,1717518639092,-500.0,0.00029589,6]
[328546925,1717518639103,-508.86327546,0.00029589,6]
[328546927,1717518639112,-500.0,0.00029589,6]
[328546929,1717518639123,-500.0,0.00029589,6]
[328546931,1717518639134,-500.0,0.00029589,6]
[328546933,1717518639143,-509.93398433,0.00029589,6]
[328546935,1717518639154,-634.63,0.00029589,6]
[328546937,1717518639163,-500.0,0.00029589,6]
[328546939,1717518639173,-500.0,0.00029589,6]
[328546941,1717518639184,-500.0,0.00029589,6]
[328546943,1717518639194,-500.0,0.00029589,6]
[328546945,1717518639205,-494.09800765,0.00029589,6]
[328546947,1717518639215,-512.15259175,0.00029589,6]
[328546949,1717518639225,-500.0,0.00029589,6]
[328546952,1717518639235,-500.0,0.00029589,6]
[328546954,1717518639250,-500.0,0.00029589,6]
[328546956,1717518639260,-500.0,0.00029589,6]
[328546958,1717518639270,-500.0,0.00029589,6]
[328546960,1717518639279,-500.0,0.00029589,6]
[328546962,1717518639290,-500.0,0.00029589,6]
[328546964,1717518639300,-500.0,0.00029589,6]
[328546966,1717518639311,-500.0,0.00029589,6]
[328546968,1717518639322,-500.0,0.00029589,6]
[328546970,1717518639332,-500.0,0.00029589,6]
[328546972,1717518639342,-500.0,0.00029589,6]
[328546974,1717518639352,-500.0,0.00029589,6]
[328546976,1717518639362,-500.0,0.00029589,6]
[328546978,1717518639371,-500.0,0.00029589,6]
[328546980,1717518639381,-517.29552712,0.00029589,6]
[328546982,1717518639391,-500.0,0.00029589,6]
[328546984,1717518639400,-479.84979607,0.00029589,6]
[328547006,1717518639596,-20.15020393,0.00029589,6]
[328547008,1717518639606,-272.58031607,0.00029589,6]
[328547010,1717518639617,-227.41968393,0.00029589,6]
[328547012,1717518639627,-500.0,0.00029589,6]
[328547014,1717518639636,-500.0,0.00029589,6]
[328547016,1717518639645,-500.0,0.00029589,6]
[328547018,1717518639654,-510.71525118,0.00029589,6]
[328547020,1717518639664,-500.0,0.00029589,6]
[328547022,1717518639673,-503.81414574,0.00029589,6]
[328547024,1717518639683,-500.0,0.00029589,6]
[328547026,1717518639692,-500.0,0.00029589,6]
[328547029,1717518639702,-635.59658785,0.00029589,6]
[328547031,1717518639712,-508.41257253,0.00029589,6]
[328547032,1717518639721,-524.11174923,0.00029589,6]
[328547035,1717518639731,-500.0,0.00029589,6]
[328547037,1717518639740,-387.02,0.00029589,6]
[328547039,1717518639752,-500.0,0.00029589,6]
[328547041,1717518639761,-592.75,0.00029589,6]
[328547042,1717518639770,-500.0,0.00029589,6]
[328547044,1717518639779,-327.61647032,0.00029589,6]
[328547046,1717518639788,-510.90387728,0.00029589,6]
[328547048,1717518639798,-500.0,0.00029589,6]
[328547050,1717518639807,-500.0,0.00029589,6]
[328547052,1717518639817,-500.0,0.00029589,6]
[328547054,1717518639826,-500.0,0.00029589,6]
[328547056,1717518639836,-273.287938,0.00029589,6]
[328547058,1717518639846,-500.0,0.00029589,6]
[328547060,1717518639855,-500.0,0.00029589,6]
[328547062,1717518639866,-500.0,0.00029589,6]
[328547064,1717518639876,-238.56,0.00029589,6]
[328547066,1717518639886,-500.0,0.00029589,6]
[328547068,1717518639896,-552.82,0.00029589,6]
[328547070,1717518639905,-500.0,0.00029589,6]
[328547072,1717518639915,-500.0,0.00029589,6]
[328547074,1717518639924,-500.0,0.00029589,6]
[328547076,1717518639934,-500.0,0.00029589,6]
[328547078,1717518639945,-500.0,0.00029589,6]
[328547080,1717518639954,-500.0,0.00029589,6]
[328547082,1717518639964,-500.0,0.00029589,6]
[328547084,1717518639973,-567.49,0.00029589,6]
[328547086,1717518639983,-500.0,0.00029589,6]
[328547088,1717518639993,-500.0,0.00029589,6]
[328547090,1717518640004,-500.0,0.00029589,6]
[328547092,1717518640014,-500.0,0.00029589,6]
[328547094,1717518640024,-500.0,0.00029589,6]
[328547096,1717518640035,-500.0,0.00029589,6]
[328547098,1717518640044,-500.0,0.00029589,6]
[328547100,1717518640056,-500.0,0.00029589,6]
[328547102,1717518640066,-500.0,0.00029589,6]
[328547104,1717518640076,-500.0,0.00029589,6]
[328547106,1717518640086,-500.0,0.00029589,6]
[328547108,1717518640096,-500.0,0.00029589,6]
[328547111,1717518640106,-500.0,0.00029589,6]
[328547113,1717518640117,-500.0,0.00029589,6]
[328547114,1717518640127,-500.0,0.00029589,6]
[328547116,1717518640136,-500.0,0.00029589,6]
[328547118,1717518640147,-500.0,0.00029589,6]
[328547120,1717518640156,-500.0,0.00029589,6]
[328547122,1717518640166,-500.0,0.00029589,6]
[328547124,1717518640176,-500.0,0.00029589,6]
[328547126,1717518640187,-500.0,0.00029589,6]
[328547128,1717518640197,-500.0,0.00029589,6]
[328547130,1717518640207,-222.96641196,0.00029589,6]
[328547134,1717518640226,-277.03358804,0.00029589,6]
[328547136,1717518640236,-500.0,0.00029589,6]
[328547138,1717518640252,-500.0,0.00029589,6]
[328547140,1717518640262,-500.0,0.00029589,6]
[328547142,1717518640272,-500.0,0.00029589,6]
[328547145,1717518640283,-500.0,0.00029589,6]
[328547148,1717518640293,-500.0,0.00029589,6]
[328547151,1717518640304,-500.0,0.00029589,6]
[328547154,1717518640314,-559.02,0.00029589,6]
[328547157,1717518640324,-500.0,0.00029589,6]
[328547159,1717518640336,-500.0,0.00029589,6]
[328547161,1717518640346,-500.0,0.00029589,6]
[328547163,1717518640357,-500.0,0.00029589,6]
[328547165,1717518640367,-500.0,0.00029589,6]
[328547167,1717518640377,-500.0,0.00029589,6]
[328547169,1717518640387,-500.0,0.00029589,6]
[328547171,1717518640397,-500.0,0.00029589,6]
[328547173,1717518640408,-500.0,0.00029589,6]
[328547176,1717518640419,-500.0,0.00029589,6]
[328547179,1717518640428,-500.0,0.00029589,6]
[328547181,1717518640439,-500.0,0.00029589,6]
[328547183,1717518640449,-500.0,0.00029589,6]
[328547185,1717518640460,-574.92458314,0.00029589,6]
[328547188,1717518640469,-500.0,0.00029589,6]
[328547191,1717518640480,-500.0,0.00029589,6]
[328547194,1717518640490,-500.0,0.00029589,6]
[328547197,1717518640501,-500.0,0.00029589,6]
[328547200,1717518640511,-500.0,0.00029589,6]
[328547203,1717518640522,-500.0,0.00029589,6]
[328547206,1717518640531,-500.0,0.00029589,6]
[328547209,1717518640542,-500.0,0.00029589,6]
[328547212,1717518640552,-500.0,0.00029589,6]
[328547215,1717518640562,-500.0,0.00029589,6]
[328547218,1717518640572,-500.0,0.00029589,6]
[328547221,1717518640582,-178.97,0.00029589,6]
[328547224,1717518640592,-500.0,0.00029589,6]
[328547227,1717518640602,-500.0,0.00029589,6]
[328547230,1717518640612,-500.0,0.00029589,6]
[328547232,1717518640622,-500.0,0.00029589,6]
[328547235,1717518640632,-500.0,0.00029589,6]
[328547238,1717518640641,-500.0,0.00029589,6]
[328547241,1717518640651,-500.0,0.00029589,6]
[328547244,1717518640661,-500.0,0.00029589,6]
[328547247,1717518640671,-500.0,0.00029589,6]
[328547250,1717518640680,-500.0,0.00029589,6]
[328547253,1717518640690,-500.0,0.00029589,6]
[328547256,1717518640699,-500.0,0.00029589,6]
[328547259,1717518640710,-500.0,0.00029589,6]
[328547262,1717518640720,-500.0,0.00029589,6]
[328547265,1717518640730,-500.0,0.00029589,6]
[328547268,1717518640740,-500.0,0.00029589,6]
[328547271,1717518640752,-500.0,0.00029589,6]
[328547274,1717518640761,-532.94414015,0.00029589,6]
[328547277,1717518640772,-500.0,0.00029589,6]
[328547280,1717518640782,-183.38,0.00029589,6]
[328547282,1717518640791,-500.0,0.00029589,6]
[328547285,1717518640801,-500.0,0.00029589,6]
[328547288,1717518640811,-500.0,0.00029589,6]
[328547292,1717518640821,-500.0,0.00029589,6]
[328547295,1717518640831,-500.0,0.00029589,6]
[328547297,1717518640841,-479.5218761,0.00029589,7]
[328547301,1717518640851,-500.0,0.00029589,6]
[328547303,1717518640861,-500.0,0.00029589,6]
[328547306,1717518640872,-500.0,0.00029589,6]
[328547309,1717518640882,-500.0,0.00029589,6]
[328547312,1717518640892,-355.69690114,0.00029589,6]
[328547315,1717518640902,-500.0,0.00029589,6]
[328547318,1717518640913,-500.0,0.00029589,6]
[328547321,1717518640923,-500.0,0.00029589,6]
[328547324,1717518640934,-500.0,0.00029589,6]
[328547327,1717518640944,-500.0,0.00029589,6]
[328547330,1717518640953,-500.0,0.00029589,6]
[328547333,1717518640963,-500.0,0.00029589,6]
[328547336,1717518640972,-500.0,0.00029589,6]
[328547339,1717518640982,-500.0,0.00029589,6]
[328547343,1717518640992,-500.0,0.00029589,6]
[328547346,1717518641004,-500.0,0.00029589,6]
[328547349,1717518641013,-500.0,0.00029589,6]
[328547352,1717518641022,-500.0,0.00029589,6]
[328547355,1717518641031,-500.0,0.00029589,6]
[328547356,1717518641040,-552.84349531,0.00029589,6]
[328547359,1717518641050,-500.0,0.00029589,6]
[328547387,1717518641200,-500.0,0.00029589,6]
[328547390,1717518641211,-500.0,0.00029589,6]
[328547393,1717518641221,-500.0,0.00029589,6]
[328547396,1717518641232,-500.0,0.00029589,6]
[328547399,1717518641243,-500.0,0.00029589,6]
[328547402,1717518641258,-500.0,0.00029589,6]
[328547405,1717518641268,-500.0,0.00029589,6]
[328547408,1717518641279,-500.0,0.00029589,6]
[328547411,1717518641288,-500.0,0.00029589,6]
[328547414,1717518641298,-500.0,0.00029589,6]
[328547417,1717518641308,-500.0,0.00029589,6]
[328547421,1717518641319,-243.42822171,0.00029589,6]
[328547424,1717518641332,-500.0,0.00029589,6]
[328547427,1717518641341,-355.51509532,0.00029589,6]
[328547430,1717518641351,-500.0,0.00029589,6]
[328547433,1717518641361,-500.0,0.00029589,6]
[328547436,1717518641370,-500.0,0.00029589,6]
[328547439,1717518641380,-500.0,0.00029589,6]
[328547442,1717518641390,-500.0,0.00029589,6]
[328547445,1717518641400,-500.0,0.00029589,6]
[328547448,1717518641409,-500.0,0.00029589,6]
[328547451,1717518641419,-500.0,0.00029589,6]
[328547454,1717518641429,-500.0,0.00029589,6]
[328547457,1717518641438,-500.0,0.00029589,6]
[328547460,1717518641448,-500.0,0.00029589,6]
[328547463,1717518641457,-500.0,0.00029589,6]
[328547466,1717518641467,-500.0,0.00029589,6]
[328547469,1717518641476,-500.0,0.00029589,6]
[328547472,1717518641485,-500.0,0.00029589,6]
[328547475,1717518641495,-474.4080008,0.00029589,6]
[328547478,1717518641506,-500.0,0.00029589,6]
[328547481,1717518641515,-500.0,0.00029589,6]
[328547484,1717518641523,-471.74056469,0.00029589,6]
[328547487,1717518641532,-500.0,0.00029589,6]
[328547489,1717518641542,-500.0,0.00029589,6]
[328547491,1717518641552,-500.0,0.00029589,6]
[328547493,1717518641561,-500.0,0.00029589,6]
[328547495,1717518641572,-516.41,0.00029589,6]
[328547497,1717518641581,-538.2,0.00029589,6]
[328547499,1717518641591,-500.0,0.00029589,6]
[328547501,1717518641601,-186.86,0.00029589,6]
[328547503,1717518641610,-500.0,0.00029589,6]
[328547505,1717518641620,-500.0,0.00029589,6]
[328547507,1717518641628,-500.0,0.00029589,6]
[328547509,1717518641638,-500.0,0.00029589,6]
[328547511,1717518641647,-500.0,0.00029589,6]
[328547513,1717518641656,-500.0,0.00029589,6]
[328547515,1717518641664,-500.0,0.00029589,6]
[328547517,1717518641673,-500.0,0.00029589,6]
[328547519,1717518641682,-500.0,0.00029589,6]
[328547521,1717518641692,-265.38059985,0.00029589,6]
[328547522,1717518641701,-500.0,0.00029589,6]
[328547525,1717518641710,-500.0,0.00029589,6]
[328547527,1717518641719,-500.0,0.00029589,6]
[328547529,1717518641728,-500.0,0.00029589,6]
[328547530,1717518641738,-500.0,0.00029589,6]
[328547532,1717518641747,-500.0,0.00029589,6]
[328547535,1717518641758,-446.05893291,0.00029589,6]
[328547536,1717518641767,-500.0,0.00029589,6]
[328547538,1717518641776,-500.0,0.00029589,6]
[328547540,1717518641786,-500.0,0.00029589,6]
[328547542,1717518641795,-500.0,0.00029589,6]
[328547545,1717518641805,-500.0,0.00029589,6]
[328547547,1717518641814,-500.0,0.00029589,6]
[328547548,1717518641823,-500.0,0.00029589,6]
[328547551,1717518641832,-500.0,0.00029589,6]
[328547553,1717518641842,-500.258,0.00029589,6]
[328547555,1717518641851,-595.82389662,0.00029589,6]
[328547557,1717518641861,-500.0,0.00029589,6]
[328547559,1717518641870,-500.0,0.00029589,6]
[328547561,1717518641880,-500.0,0.00029589,6]
[328547563,1717518641889,-500.0,0.00029589,6]
[328547565,1717518641899,-500.0,0.00029589,6]
[328547567,1717518641909,-500.0,0.00029589,6]
[328547569,1717518641917,-500.0,0.00029589,6]
[328547571,1717518641926,-500.0,0.00029589,6]
[328547573,1717518641935,-500.0,0.00029589,6]
[328547575,1717518641945,-500.0,0.00029589,6]
[328547577,1717518641954,-500.0,0.00029589,6]
[328547579,1717518641964,-500.0,0.00029589,6]
[328547581,1717518641974,-500.0,0.00029589,6]
[328547583,1717518641984,-500.0,0.00029589,6]
[328547585,1717518641993,-500.0,0.00029589,6]
[328547587,1717518642004,-500.0,0.00029589,6]
[328547589,1717518642013,-500.0,0.00029589,6]
[328547591,1717518642024,-656.97,0.00029589,6]
[328547593,1717518642034,-656.97,0.00029589,6]
[328547595,1717518642043,-656.97,0.00029589,6]
[328547597,1717518642054,-500.0,0.00029589,6]
[328547599,1717518642064,-656.97,0.00029589,6]
[328547601,1717518642074,-500.0,0.00029589,6]
[328547602,1717518642084,-656.97,0.00029589,6]
[328547603,1717518642094,-196.02,0.00029589,6]
[328547604,1717518642104,-500.0,0.00029589,6]
[328547605,1717518642115,-500.0,0.00029589,6]
[328547606,1717518642124,-576.44389613,0.00029589,6]
[328547607,1717518642134,-500.0,0.00029589,6]
[328547608,1717518642143,-500.0,0.00029589,6]
[328547609,1717518642153,-500.0,0.00029589,6]
[328547610,1717518642163,-253.26,0.00029589,6]
[328547611,1717518642172,-500.0,0.00029589,6]
[328547612,1717518642182,-500.0,0.00029589,6]
[328547613,1717518642192,-500.0,0.00029589,6]
[328547614,1717518642201,-555.87,0.00029589,6]
[328547616,1717518642211,-500.0,0.00029589,6]
[328547618,1717518642220,-500.0,0.00029589,6]
[328547620,1717518642230,-500.0,0.00029589,6]
[328547622,1717518642239,-500.0,0.00029589,6]
[328547624,1717518642253,-500.0,0.00029589,6]
[328547625,1717518642262,-500.0,0.00029589,6]
[328547628,1717518642271,-566.64,0.00029589,6]
[328547629,1717518642280,-549.18,0.00029589,6]
[328547630,1717518642292,-549.18,0.00029589,6]
[328547631,1717518642301,-549.18,0.00029589,6]
[328547632,1717518642310,-500.0,0.00029589,6]
[328547633,1717518642319,-549.18,0.00029589,6]
[328547634,1717518642330,-500.0,0.00029589,6]
[328547635,1717518642339,-549.18,0.00029589,6]
[328547636,1717518642348,-500.0,0.00029589,6]
[328547637,1717518642358,-500.0,0.00029589,6]
[328547639,1717518642367,-233.77,0.00029589,6]
[328547641,1717518642377,-500.0,0.00029589,6]
[328547643,1717518642386,-500.0,0.00029589,6]
[328547645,1717518642395,-500.0,0.00029589,6]
[328547647,1717518642405,-500.0,0.00029589,6]
[328547649,1717518642414,-500.0,0.00029589,6]
[328547651,1717518642423,-500.0,0.00029589,6]
[328547652,1717518642432,-500.0,0.00029589,6]
[328547654,1717518642441,-500.0,0.00029589,6]
[328547656,1717518642450,-500.0,0.00029589,6]
[328547658,1717518642460,-500.0,0.00029589,6]
[328547661,1717518642469,-500.0,0.00029589,6]
[328547663,1717518642479,-500.0,0.00029589,6]
[328547664,1717518642488,-500.0,0.00029589,6]
[328547666,1717518642497,-500.0,0.00029589,6]
[328547669,1717518642508,-197.91,0.00029589,6]
[328547671,1717518642519,-500.0,0.00029589,6]
[328547674,1717518642528,-500.0,0.00029589,6]
[328547676,1717518642539,-500.0,0.00029589,6]
[328547678,1717518642549,-500.0,0.00029589,6]
[328547680,1717518642559,-500.0,0.00029589,6]
[328547682,1717518642568,-500.0,0.00029589,6]
[328547685,1717518642578,-500.0,0.00029589,6]
[328547688,1717518642587,-301.80242847,0.00029589,6]
[328547690,1717518642597,-500.0,0.00029589,6]
[328547693,1717518642606,-500.0,0.00029589,6]
[328547696,1717518642616,-500.0,0.00029589,6]
[328547699,1717518642627,-500.0,0.00029589,6]
[328547703,1717518642640,-500.0,0.00029589,6]
[328547705,1717518642654,-500.0,0.00029589,6]
[328547709,1717518642667,-500.0,0.00029589,6]
[328547712,1717518642680,-500.0,0.00029589,6]
[328547714,1717518642691,-592.91,0.00029589,6]
[328547716,1717518642701,-500.0,0.00029589,2]
[328547719,1717518642714,-500.0,0.00029589,6]
[328547721,1717518642726,-348.12609326,0.00029589,2]
[328547723,1717518642737,-500.0,0.00029589,6]
[328547726,1717518642750,-500.0,0.00029589,6]
[328547728,1717518642766,-336.8142687,0.00029589,6]
[328547730,1717518642778,-500.0,0.00029589,6]
[328547733,1717518642791,-500.0,0.00029589,6]
[328547735,1717518642803,-500.0,0.00029589,6]
[328547737,1717518642817,-297.8,0.00029589,6]
[328547740,1717518642829,-500.0,0.00029589,6]
[328547742,1717518642841,-500.0,0.00029589,6]
[328547744,1717518642853,-500.0,0.00029589,6]
[328547747,1717518642865,-500.0,0.00029589,6]
[328547749,1717518642877,-500.0,0.00029589,6]
[328547751,1717518642888,-500.0,0.00029589,6]
[328547753,1717518642899,-418.1,0.00029589,6]
[328547756,1717518642912,-500.0,0.00029589,6]
[328547758,1717518642924,-500.0,0.00029589,6]
[328547760,1717518642935,-500.0,0.00029589,6]
[328547762,1717518642947,-500.0,0.00029589,6]
[328547764,1717518642957,-500.0,0.00029589,6]
[328547767,1717518642967,-500.0,0.00029589,6]
[328547769,1717518642978,-500.0,0.00029589,6]
[328547771,1717518642989,-500.0,0.00029589,6]
[328547773,1717518643004,-500.0,0.00029589,6]
[328547776,1717518643016,-400.0,0.000296,10]
[328547778,1717518643027,-301.35380907,0.00029607,2]
[328547780,1717518643039,-153.05703103,0.00029608,2]
[328547782,1717518643052,-154.33671929,0.00029613,2]
[328547785,1717518643065,-150.70901119,0.00029615,2]
[328547787,1717518643078,-4019.90937897,0.00029617,2]
[328547789,1717518643090,-151.18071362,0.00029622,2]
[328547791,1717518643103,-154.03339596,0.00029626,2]
[328547793,1717518643113,-151.18071362,0.00029632,2]
[328547796,1717518643124,-211.10996761,0.00029649,2]
[328547798,1717518643134,-154.22748096,0.00029661,2]
[328547800,1717518643145,-412.17126416,0.00029666,2]
[328547802,1717518643157,-4019.90937897,0.00029673,2]
[328547804,1717518643169,-154.22748096,0.00029682,2]
[328547807,1717518643181,-9481.28093386,0.000297,2]
[328547809,1717518643194,-400.0,0.000297,10]
[328547811,1717518643205,-160.53348414,0.00029719,2]
[328547813,1717518643215,-4019.90937897,0.0002973,2]
[328547816,1717518643226,-150.0,0.00029747,2]
[328547818,1717518643237,-150.0,0.00029753,2]
[328547820,1717518643253,-150.0,0.00029757,2]
[328547822,1717518643266,-500.0,0.0002976,2]
[328547824,1717518643277,-151.18071362,0.00029773,2]
[328547826,1717518643290,-151.0,0.00029778,2]
[328547829,1717518643302,-250.49088,0.00029778,2]
[328547831,1717518643313,-4019.90937897,0.00029787,2]
[328547833,1717518643327,-150.0,0.00029795,2]
[328547835,1717518643339,-150.0,0.00029795,2]
[328547838,1717518643351,-835.0,0.000298,10]
[328547840,1717518643363,-160.31,0.00029808,30]
[328547842,1717518643374,-1500.0,0.0002981,2]
[328547844,1717518643385,-150.0,0.00029811,2]
[328547846,1717518643396,-150.0,0.00029824,2]
[328547848,1717518643408,-150.0,0.00029832,2]
[328547850,1717518643419,-211.10996761,0.00029836,2]
[328547852,1717518643431,-500.0,0.00029838,3]
[328547855,1717518643442,-4019.90937897,0.00029843,2]
[328547857,1717518643453,-500.0,0.00029847,3]
[328547859,1717518643465,-150.0,0.00029856,2]
[328547861,1717518643475,-500.0,0.00029856,3]
[328547863,1717518643486,-211.10996761,0.00029859,2]
[328547865,1717518643498,-500.0,0.00029865,3]
[328547868,1717518643512,-211.10996761,0.00029871,2]
[328547870,1717518643522,-500.0,0.00029874,3]
[328547872,1717518643533,-300.0,0.0002988,2]
[328547874,1717518643545,-500.0,0.00029882,3]
[328547876,1717518643556,-157.63419282,0.00029887,2]
[328547878,1717518643568,-500.0,0.00029891,3]
[328547880,1717518643579,-301.35380907,0.00029894,2]
[328547882,1717518643591,-150.0,0.00029896,2]
[328547883,1717518643602,-478.04,0.00029898,6]
[328547885,1717518643613,-500.0,0.00029898,6]
[328547886,1717518643624,-500.0,0.00029898,6]
[328547887,1717518643635,-500.0,0.00029898,6]
[328547888,1717518643646,-500.0,0.00029898,6]
[328547889,1717518643657,-656.97,0.00029898,6]
[328547890,1717518643668,-500.0,0.00029898,6]
[328547891,1717518643679,-3338.5617,0.00029899,2]
[328547892,1717518643690,-1000.0,0.00029899,2]
[328547893,1717518643701,-281.169,0.00029899,2]
[328547894,1717518643712,-924.79150113,0.000299,2]
[328547895,1717518643723,-2009.24235392,0.000299,2]
[328547896,1717518643734,-10000.0,0.000299,2]
[328547897,1717518643745,-4019.90937897,0.000299,2]
[328547898,1717518643757,-500.0,0.000299,3]
[328547899,1717518643768,-2397.2087532,0.000299,3]
[328547900,1717518643779,-151.41784711,0.000299,2]
[328547902,1717518643790,-469.79434489,0.000299,15]
[328547904,1717518643800,-3991.43811151,0.000299,15]
[328547906,1717518643811,-165.49493537,0.000299,2]
[328547908,1717518643822,-1522.6783109,0.000299,2]
[328547910,1717518643833,-150.0,0.00029902,2]
[328547911,1717518643844,-150.0,0.00029909,2]
[328547912,1717518643855,-1500.0,0.00029925,2]
[328547913,1717518643866,-300.0,0.00029927,2]
[328547914,1717518643878,-150.0,0.00029932,2]
[328547915,1717518643888,-150.0,0.00029932,2]
[328547916,1717518643900,-1500.0,0.00029936,2]
[328547917,1717518643912,-154.22748096,0.00029938,2]
[328547918,1717518643923,-150.0,0.00029947,2]
[328547919,1717518643934,-300.0,0.00029949,2]
[328547920,1717518643945,-150.0,0.00029954,2]
[328547921,1717518643956,-151.18071362,0.00029966,2]
[328547922,1717518643968,-1500.0,0.00029969,2]
[328547923,1717518643979,-905.0,0.00029969,15]
[328547924,1717518643990,-905.0,0.00029969,15]
[328547925,1717518644002,-200.0,0.0002997,15]
[328547926,1717518644013,-169.00998555,0.0002997,2]
[328547927,1717518644024,-4609.39263535,0.00029971,2]
[328547928,1717518644035,-151.18071362,0.00029978,2]
[328547929,1717518644046,-905.0,0.00029979,15]
[328547930,1717518644058,-905.0,0.00029979,15]
[328547931,1717518644069,-905.0,0.00029979,15]
[328547932,1717518644081,-150.5,0.0002998,15]
[328547933,1717518644093,-910.38,0.0002998,15]
[328547934,1717518644105,-1708.552082,0.0002998,10]
[328547935,1717518644115,-1500.0,0.00029982,2]
[328547936,1717518644125,-150.0,0.00029983,2]
[328547937,1717518644135,-5666.9562403,0.00029987,2]
[328547938,1717518644145,-905.0,0.00029989,15]
[328547939,1717518644155,-905.0,0.00029989,15]
[328547940,1717518644166,-905.0,0.00029989,15]
[328547941,1717518644176,-500.0,0.00029989,6]
[328547942,1717518644187,-500.0,0.00029989,6]